Cogmind - Beta 16.1 @@@ ROGUE MODE // 2026.04.01 @ 13:00:23 Player: unq Result: Destroyed by 3H-OLE(R) with Subdweller Machine Gun Performance ------------- Evolutions (0) 0 Regions Visited (2) 400 Robots Destroyed (27) 135 Value Destroyed (628) 628 Prototype IDs (2) 40 Alien Tech Used (0) 0 Bonus (0) 0 TOTAL SCORE: 1203 Bonus ------- None Cogmind --------- Core Integrity 0/250 Matter 209/300 Energy 114/125 System Corruption 4% Temperature Cool (0) Movement Treading (240) Ox1 Location -10/Subcaves Parts ------- > --- POWER (1) -------- Light Ion Engine > --- PROPULSION (2) --- Light Treads > --- UTILITY (2) ------ Large Storage Unit > --- WEAPON (2) ------- Medium Laser Assault Rifle > --- INVENTORY (15) --- Subdweller Power Source Light Treads Subdweller Monowheel Subdweller Monowheel High-capacity Storage Unit Large Matter Pod (150) Subdweller Optics Seismic Detector Light Assault Rifle Grenade Launcher Grenade Launcher Mining Laser Peak State ------------ > --- POWER ------------ Subdweller Power Source > --- PROPULSION ------- Light Treads Light Treads > --- UTILITY ---------- Large Storage Unit Seismic Detector > --- WEAPON ----------- Beam Cannon Subdweller Machine Gun > --- INVENTORY -------- Light Ion Engine Light Treads Subdweller Monowheel Subdweller Monowheel High-capacity Storage Unit Large Matter Pod Subdweller Optics Light Armor Plating Medium Laser Assault Rifle Light Assault Rifle Battle Cannon Grenade Launcher Grenade Launcher Mining Laser [Rating: 10] Favorites ----------- Power Light Ion Engine Engine Light Ion Engine Propulsion Light Treads Treads Light Treads Utility Seismic Detector Device Seismic Detector Storage Small Storage Unit Protection Light Armor Plating Weapon Assault Rifle Energy Gun Medium Laser Energy Cannon Beam Cannon Ballistic Gun Assault Rifle Ballistic Cannon Battle Cannon Launcher Grenade Launcher Special Weapon Mining Laser Build | -11 -10 -10 ------- Run | Yrd Mat Sub Slots Evolved . | . . . Power . | . . . Propulsion . | . . . Utility . | . . . Weapon . | . . . Parts Attached 20 | 7 8 5 Power 4 | 1 2 1 Engine 4 | 1 2 1 Core . | . . . Reactor . | . . . Propulsion 3 | 2 1 . Treads 3 | 2 1 . Leg . | . . . Wheel . | . . . Hover . | . . . Flight . | . . . Utility 5 | 2 2 1 Device 2 | 1 1 . Storage 2 | 1 1 . Processor . | . . . Hackware . | . . . Protection 1 | . . 1 Artifact . | . . . Weapon 8 | 2 3 3 Energy Gun 1 | . 1 . Energy Cannon 1 | . 1 . Ballistic Gun 3 | 2 . 1 Ballistic Cannon 1 | . . 1 Launcher 1 | . . 1 Special Weapon 1 | . 1 . Impact Weapon . | . . . Slashing Weapon . | . . . Piercing Weapon . | . . . Special Melee Weapon . | . . . Unidentified Prototypes . | . . . Parts Lost 6 | . 1 5 Power 1 | . 1 . Propulsion 1 | . . 1 Utility 1 | . . 1 Weapon 3 | . . 3 Highest Loss Streak 3 | . 1 3 To Critical Strikes . | . . . Average Backups 8 | . 6 13 Power . | . . 1 Propulsion 1 | . . 2 Utility 2 | . 2 3 Weapon 3 | . 3 6 Tool/Special . | . . . Unused Backups 11 | . 1 10 Power 1 | . . 1 Propulsion 3 | . . 3 Utility 4 | . . 4 Weapon 3 | . 1 2 Tool/Special . | . . . Average Slot Usage (%) 99 | . 99 98 Engine 13 | . 13 14 Treads 27 | . 27 27 Device 12 | . 14 10 Storage 14 | . 14 14 Energy Gun 4 | . 6 . Energy Cannon 7 | . 4 13 Ballistic Gun 12 | . 15 5 Ballistic Cannon 2 | . . 6 Peak Build Rating 10 | 7 8 10 Average Rating 7 | 5 7 9 On Entrance 5 | . 7 8 Avg Prop Armor Cover (%) . | . . . Naked Turns . | . . . Heaviest Build 33 | 12 29 33 Greatest Support 40 | 40 40 40 Greatest Overweight (x) . | . . . Average Overweight (x) . | . . . Largest Inventory Capacity 15 | 8 15 15 Average Capacity 10 | 6 9 15 Most Carried 15 | 1 12 15 Average Carried 8 | . 6 13 Final Capacity 15 | 8 15 15 Final Carried 12 | 1 12 12 Class Distribution -------------------- 94% | Mutant 5% | Scavenger-Mutant Dominant Class ---------------- Mutant | -10/Materials Mutant | -10/Subcaves Resources | -11 -10 -10 ----------- Run | Yrd Mat Sub Matter Collected 886 | 221 491 174 Remotely . | . . . Salvage Created 1167 | 130 835 202 Parts 55 | 7 35 13 Haulers Intercepted 2 | . 2 . Recyclers Shooed . | . . . Parts Field Recycled . | . . . Retrieved Matter . | . . . Parts Self-Destructed 3 | . . 3 Prevented . | . . . Parts Restored . | . . . Kills | -11 -10 -10 ------- Run | Yrd Mat Sub Combat Hostiles Destroyed 16 | . 11 5 Guns 13 | . 11 2 Cannons 3 | . . 3 Classes Destroyed 7 | 2 4 1 Tunneler 2 | 2 . . Hauler 2 | . 2 . Recycler 4 | 1 3 . Watcher 3 | . 3 . Swarmer 3 | . 3 . Grunt 8 | . 8 . Subdweller 5 | . . 5 Best Kill Streak 5 | 2 5 2 Combat Bots Only 2 | . 2 2 Max Kills in Single Turn 1 | 1 1 1 Gunslinging . | . . . Exploded . | . . . Melee . | . . . Uniques/NPCs Destroyed . | . . . Combat | -11 -10 -10 -------- Run | Yrd Mat Sub Hostile Shots Fired 107 | . 56 51 Missed 29 | . 9 20 Hits 78 | . 47 31 Projectile 78 | . 47 31 Critical Strikes 4 | . 3 1 Damage Taken 1344 | . 542 802 Core 256 | . 87 169 Absorbed by Shields . | . . . Regen/Repaired (Parts) 123 | . 123 . Core Remaining (%) 100 | 100 . . Volleys Fired 104 | 6 68 30 Largest 2 | 2 2 2 Hottest 100 | 40 100 93 Shots Fired 201 | 12 136 53 Gun 159 | 12 129 18 Cannon 39 | . 6 33 Launcher 2 | . . 2 Special 1 | . 1 . Kinetic 113 | 12 75 26 Thermal 86 | . 61 25 Explosive 2 | . . 2 Electromagnetic . | . . . Robot Hit Streak 33 | 9 10 33 Robot Miss Streak 4 | . 4 2 Penetration Max . | . . . Secondary Targets . | . . . Shots Hit Robots 129 | 9 79 41 Core Hits 53 | 4 36 13 Critical Kills . | . . . Critical Parts Destroyed . | . . . Critical Strikes 3 | . 2 1 Burn 2 | . 2 . Blast 1 | . . 1 Melee Attacks . | . . . Impact . | . . . Slashing . | . . . Piercing . | . . . Sneak Attacks . | . . . Combat Hostiles . | . . . Follow-up Attacks . | . . . Damage Inflicted 1789 | 102 992 695 Guns 1298 | 102 965 231 Cannons 482 | . 18 464 Explosions . | . . . Melee . | . . . Ramming 9 | . 9 . Kinetic 1000 | 102 565 333 Thermal 780 | . 418 362 Explosive . | . . . Electromagnetic . | . . . Impact . | . . . Slashing . | . . . Piercing . | . . . Highest Corruption 4 | . 4 4 Average Corruption 3 | . 3 4 Corruption Purged . | . . . Corruption Blocked . | . . . Effects 23 | . 10 13 Message Errors 6 | . 3 3 Matter Fused 2 | . 1 1 Heat Flow Errors 7 | . 2 5 Energy Discharges 3 | . . 3 Data Loss (minor) 3 | . 2 1 Data Loss (major) 1 | . 1 . Misfires 1 | . 1 . Overload Shots . | . . . Overflow Damage . | . . . Projectiles . | . . . Explosions . | . . . Melee . | . . . Knockbacks 1 | . . 1 Impact . | . . . Kinetic 1 | . . 1 Secondary . | . . . Self-Inflicted Damage . | . . . Shots . | . . . Rammed 3 | . 3 . Targets Rammed 3 | . 3 . Kicked . | . . . Crushed . | . . . Highest Temperature 235 | . 186 235 Average Temperature 52 | . 45 108 Received Heat Transfer 393 | . 297 96 Siege Activations . | . . . Martial Activations . | . . . Shielding Activations . | . . . Robots Disrupted . | . . . Combat Hostiles . | . . . Robots Corrupted . | . . . Combat Hostiles . | . . . Parts Fried . | . . . Impact Corruptions . | . . . Robots Melted . | . . . Combat Hostiles . | . . . Parts Melted 4 | . 1 3 Heat Transferred 2146 | . 1369 777 Parts Sabotaged . | . . . Parts Stolen . | . . . Parts Stripped . | . . . Power Chain Reactions . | . . . Alert | -11 -10 -10 ------- Run | Yrd Mat Sub Maximum Alert Level . | . . . Low Security (%) 100 | 100 100 . Level 1 . | . . . Level 2 . | . . . Level 3 . | . . . Level 4 . | . . . Level 5 . | . . . High Security . | . . . Max Security . | . . . Peak Influence 114 | 10 114 . Initial . | . . . Average 32 | 2 33 . Influence Increases 453 | 15 438 . Destroy 0b10 Robot/C 220 | . 220 . Destroy 0b10 Robot/NC 55 | 15 40 . Destroy Leader 70 | . 70 . Successful Hack 31 | . 31 . Select Force Hacks 30 | . 30 . Disable Machine 15 | . 15 . Destroy Structure 2 | . 2 . Lose Combat Pursuer 30 | . 30 . Influence Decreases 453 | 15 411 27 Entered New Map 14 | . . 14 Time Decay 429 | 15 401 13 Lost Part 10 | . 10 . Squads Dispatched 4 | . 4 . Investigation 1 | . 1 . Extermination . | . . . Reinforcement 3 | . 3 . Assault . | . . . Garrison . | . . . Intercept . | . . . Searches Triggered . | . . . Construction Impeded . | . . . Haulers Reinforced . | . . . Active Scanning Responses . | . . . Cargo Convoy Interrupts . | . . . Stealth | -11 -10 -10 --------- Run | Yrd Mat Sub Distress Signals 3 | . 3 . Communications Jammed . | . . . Distress Signals . | . . . Times Spotted 29 | . 21 8 Peak Tracking Total 4 | . 4 3 Tactical Retreats 2 | . 2 . Traps | -11 -10 -10 ------- Run | Yrd Mat Sub Traps Triggered 6 | . 3 3 Indirectly . | . . . Trap Hack Attempts . | . . . Triggered . | . . . Disarmed . | . . . Reprogrammed . | . . . Reused . | . . . Traps Extracted . | . . . Installed . | . . . Triggered . | . . . Machines | -11 -10 -10 ---------- Run | Yrd Mat Sub Machines Disabled 1 | . 1 . Max in Single Turn 1 | . 1 . Machines Repaired . | . . . Machines Dismantled . | . . . Machines Sabotaged . | . . . Overloaded Fab Kills . | . . . Hacking | -11 -10 -10 --------- Run | Yrd Mat Sub Machines Accessed 7 | . 7 . Terminals 5 | . 5 . Fabricators . | . . . Repair Stations 1 | . 1 . Recycling Units 1 | . 1 . Scanalyzers . | . . . Garrison Access . | . . . Total Hacks 20 | . 20 . Successful 9 | . 9 . Failed 10 | . 10 . Catastrophic . | . . . Database Lockouts 1 | . 1 . Manual 10 | . 10 . Terminals 16 | . 16 . Fabricators . | . . . Repair Stations 2 | . 2 . Recycling Units 2 | . 2 . Scanalyzers . | . . . Garrison Access . | . . . Terminal Hacks 4 | . 4 . Robot Analysis 1 | . 1 . Prototype ID Bank 1 | . 1 . Locate Traps 2 | . 2 . Fabricator Hacks . | . . . Repair Station Hacks 2 | . 2 . Scan Component 1 | . 1 . Repair 1 | . 1 . Recycling Unit Hacks 1 | . 1 . Retrieve Components 1 | . 1 . Scanalyzer . | . . . Garrison Access Hacks . | . . . Unauthorized Hacks 2 | . 2 . Terminals 1 | . 1 . Botnet 1 | . 1 . Fabricators . | . . . Repair Stations . | . . . Recycling Units 1 | . 1 . Tunnel 1 | . 1 . Scanalyzers . | . . . Garrison Access . | . . . Data Cores Recovered . | . . . Used . | . . . Hacking Detections 7 | . 7 . Full Trace Events . | . . . Feedback Events . | . . . Feedback Blocked . | . . . Robot Schematics Acquired . | . . . Robots Built . | . . . Authchips . | . . . Time . | . . . Total Robot Build Rating . | . . . Part Schematics Acquired . | . . . Parts Built . | . . . Authchips . | . . . Time . | . . . Total Part Build Rating . | . . . Part Studies Acquired . | . . . Parts Repaired 1 | . 1 . Time 13 | . 13 . Parts Recycled . | . . . Recycled Matter . | . . . Retrieved Matter . | . . . Retrieved Components 1 | . 1 . Parts Scanalyzed . | . . . Part Schematics Acquired . | . . . Parts Damaged . | . . . Bothacking | -11 -10 -10 ------------ Run | Yrd Mat Sub Used RIF Installer . | . . . Robots Hacked . | . . . Non-combat . | . . . Combat . | . . . Robot Hacks Applied . | . . . Relay Couplers Released . | . . . Fabnet Peak Effective % . | . . . Robots Rewired . | . . . Allies Hacked . | . . . Hacks Repelled . | . . . Allies | -11 -10 -10 -------- Run | Yrd Mat Sub Total Allies . | . . . Largest Group . | . . . Highest-Rated Group . | . . . Highest-Rated Ally . | . . . Total Orders . | . . . Ally Attacks . | . . . Total Damage . | . . . Kills . | . . . Allies Corrupted . | . . . Allies Melted . | . . . Intel | -11 -10 -10 ------- Run | Yrd Mat Sub Active Infowar (turns) 2060 | 3 1551 506 Seismic 2060 | 3 1551 506 Robot Analysis Total 1 | . 1 . Derelict Logs Recovered . | . . . Drone Launches . | . . . Drone Recoveries . | . . . Exploration | -11 -10 -10 ------------- Run | Yrd Mat Sub Turns Passed 2303 | 88 1553 662 Spaces Moved 1113 | 42 765 306 Core 6 | 6 . . Treads 1107 | 36 765 306 Legs . | . . . Wheels . | . . . Hover . | . . . Flight . | . . . Fastest Speed 50 | 50 160 160 Average Speed 159 | 144 160 160 Slowest Speed 160 | 160 160 160 Overloaded Moves . | . . . Propulsion Burnouts . | . . . Robots Hopped . | . . . Potential Cave-ins . | . . . Cave-ins Triggered . | . . . Exploration Rate (%) 40 | 4 95 23 Regions Visited 2 Branch Regions 1 Pre-discovered Areas 1 | . 1 . Known Exits Taken . | . . . Unknown Exits Taken 2 | 1 1 . Scrap Searched 2 | . . 2 Spaces Dug 10 | . 1 9 Terrain Destroyed 10 | . 1 9 Melee . | . . . Projectile 1 | . 1 . AOE 9 | . . 9 Terrain Rammed . | . . . Walls Destroyed . | . . . Machines Disabled . | . . . Actions | -11 -10 -10 --------- Run | Yrd Mat Sub Total 1438 | 55 958 425 Wait 157 | . 91 66 Move 1111 | 41 764 306 Hop . | . . . Pick Up 21 | 1 15 5 Fast Attach 9 | 7 2 . Attach 6 | . 2 4 Detach 2 | . 1 1 Swap 15 | . 6 9 Drop 10 | . 6 4 Fire 104 | 6 68 30 Melee . | . . . Ram . | . . . Kick . | . . . Crush 3 | . 3 . Escape Stasis . | . . . Rewire . | . . . Trap . | . . . Miscellaneous . | . . . Route ------- -11/Scrapyard -10/Materials (discovered 5 exits: [*Mat x3] / [*Min] / [*Sub]) -10/Subcaves History --------- Turn | Location | Event 7 | -11/Scrapyard | Discovered new exit (range 15) 89 | -11/Scrapyard | Entered Materials 304 | -10/Materials | Build established: Mutant 596 | -10/Materials | Discovered new exit (range 16) 764 | -10/Materials | Repaired Lgt. Treads 1113 | -10/Materials | Discovered new exit (range 11) 1294 | -10/Materials | Discovered new exit (range 5) 1313 | -10/Materials | Central database locked down 1538 | -10/Materials | Discovered new exit (range 5) 1613 | -10/Materials | Discovered new exit (range 5) 1642 | -10/Materials | Entered Subcaves 1643 | -10/Subcaves | Approached by a straggling Scientist 2072 | -10/Subcaves | Core integrity fell below 50% 2277 | -10/Subcaves | A Subdweller sparked back to life 2277 | -10/Subcaves | A Subdweller sparked back to life 2277 | -10/Subcaves | A Subdweller sparked back to life 2301 | -10/Subcaves | Core integrity fell below 20% 2304 | -10/Subcaves | Destroyed by 3H-OLE(R) with Subdweller Machine Gun Last Messages --------------- 02071_ An expanding cloud of shrapnel blasts out in all directions. 02084_ Triggered Shrapnel Trap. 02084_ An expanding cloud of shrapnel blasts out in all directions. 02088_ System corrupted: Energy discharge (-46). 02093_ Triggered Piercing Trap. 02093_ Spikes shoot up from the floor. 02093_ Critical hit (Impale). 02124_ RQ,J&,&& 5BG0|C1QEJWWVDJ,2 02142_ Sub. Power Source shoots sparks and powers down. 02233_ System corrupted: Heat flow error (+268). 02249_ System corrupted: Energy discharge (-31). 02277_ 3H-OLE(R) creaks and sparks as it begins to move. 02277_ W3-5AS(R) creaks and sparks as it begins to move. 02277_ 50-018(R) creaks and sparks as it begins to move. 02285_ 3H-OLE(R) affixes Scrap Shield Fragment to Scrap Shield. 02289_ 50-018(R) Disposable Heat Sink blasted off. 02289_ 50-018(R) knocked back. 02293_ Lgt. Treads destroyed. 02296_ Beam Cannon destroyed. 02301_ Battle Cannon destroyed. Map ----- +----------------------------------------------------+ | ?????????????????????????????????????????????###?? | | ????????????????????????????????????????????# ## | | ?????????????????????????????????????????????# | | ?????????????????????????????????????????????# | | ????????????????????????????????????????????## | | ????????????????????????????????????????????# | | ????????????????????????????????????????????? | | ????????????????????????????????????????????? ## | | ????????????????????????????????????????????????## | | ?????????????????????????????????????????????????# | | ?????????????????????????????????????????????????? | | ?????????????????????????????????????????????????? | | ?????????????????????????????????????????????????? | | ?????????????????????????????????????????????????? | | ?????????????????????????????????????????????#???? | | ?????????????????????????????????????????????# ## | | ?????????????????????????????????????????????# | | ????????????????????????????????????????????## | | ????????????????????######??????????????????# | | ???????????????????#""& #??????????????????#### | | ???????????????????# "#?????????????????????# | | ???????????????????# "#????????####?????????# | | ???????????????????#" #?####???# ##????????## | | ???????????????????# ## #??## ##????????## | | ???????????????????#"# %## #??# ##????????? | | ???????????? ???????## R@ #?#### ##??#####? | | ???????????? "???????##R #### ## #### ## | | ????????????"" "??????# % #### # | | ???????????"" ?????##R ## # | | ???????????" ###### ## ## | | ????????????? # # ## ## | | ?????????????? ## ### ## ## | | ???????????????? ?# ## ## ## | | ??????????????????# ## ## #### | | ???????????????????# ## ##??## | | ?????????# # ## ## ##????# ## | | ??????? ### ##?????# #? | | ????????# ### #?#####??????# #? | | ????????? ### #### ??# #????????????# #? | | ?????????????????# #???#########????????????## ##? | | ?????????????????##??????????????????????????###?? | | ?????????????????????????????????????????????????? | | ?????????????????????????????????????????????????? | | ?????????????????????????????????????????????????? | | ?????????????????????????????????????????????????? | | ?????????????????????????????????????????????????? | | ?????????????????????????????????????????????????? | | ?????????????????????????????????????????????????? | | ?????????????????????????????????????????????????? | | ?????????????????????????????????????????????????? | +----------------------------------------------------+ Best States ------------- Heat Dissipation 25 Energy Generation 15 Energy Capacity 200 Matter Stores 300 Matter Capacity 300 Sight Range 16 Terrain Scan Density 10 Armor Coverage 150 Evasion (%) 40 Recoil Reduction 2 Item Schematics ----------------- None Robot Schematics ------------------ None Fabricated ------------ Nothing Repaired ---------- Lgt. Treads | 12% | -10/Materials Studied --------- None Alien Tech Used ----------------- None Achievements -------------- None Challenges ------------ None Game ------ Seed AblativePulseJoltstriker Manual? 0 Play Time 00:25:41 Cumulative 323.1 hours Start 2026.04.01 @ 12:33:22 End 2026.04.01 @ 13:00:23 Sessions 1 Manual Loads 0 Difficulty Rogue Special Mode None Game No. 94 Rogue 94 Adventurer 0 Explorer 0 Win Type - Total 2 Types 2/0/0/0/0/0/0/0/0/0 Lore% 58 Gallery% 57 Achievement% 46 Wizard Run 0 Options --------- Layout 0 ASCII 1 Keyboard 1 Movement Arrows Keybinds 0 Fullscreen 1 Font 28/Smallcaps Map View 72x54 Zoom Use 0% Tactical HUD 1 Map Filters NONE Filters NONE Steam 1 RUN: 97e415b1-341d-402c-8d74-4a22aa3f2667